bitfinex/quotes_BTCUSD_20250610
["timestamp","ask_amount","ask_price","bid_price","bid_amount"]
[1749521056803,0.29277538,109690.0,109680.0,0.4463692]
[1749521057010,0.29277538,109690.0,109680.0,0.46343911]
[1749521057219,0.29277538,109690.0,109680.0,0.4463692]
[1749521057427,0.29277538,109690.0,109680.0,0.46343911]
[1749521058258,0.29277538,109690.0,109680.0,0.46343799]
[1749521058678,0.29277538,109690.0,109680.0,0.4463692]
[1749521059101,0.29277538,109690.0,109680.0,0.46343799]
[1749521059324,0.29277538,109690.0,109680.0,0.4463692]
[1749521059526,0.29277538,109690.0,109680.0,0.06343799]
[1749521059703,0.29277538,109690.0,109680.0,0.0463692]
[1749521059929,0.29277538,109690.0,109680.0,0.4463692]
[1749521060625,0.29277538,109690.0,109680.0,0.46343671]
[1749521060829,0.29277538,109690.0,109680.0,0.4463692]
[1749521061246,0.29277538,109690.0,109680.0,0.46343671]
[1749521061473,0.29277538,109690.0,109680.0,0.4463692]
[1749521061909,0.29277538,109690.0,109680.0,0.46343671]
[1749521062045,0.29277538,109690.0,109680.0,0.46343705]
[1749521062267,0.29277538,109690.0,109680.0,0.4463692]
[1749521062984,0.29277538,109690.0,109680.0,0.0463692]
[1749521063563,0.29277538,109690.0,109680.0,0.4463692]
[1749521063743,0.29277538,109690.0,109680.0,0.46343704]
[1749521063897,0.29277538,109690.0,109680.0,0.4463692]
[1749521064834,0.29277538,109690.0,109680.0,0.46343908]
[1749521065039,0.29277538,109690.0,109680.0,0.4463692]
[1749521065362,0.29277538,109690.0,109680.0,0.46343908]
[1749521065607,0.29277538,109690.0,109680.0,0.51804578]
[1749521065815,0.29277538,109690.0,109680.0,0.5009759]
[1749521066021,0.29277538,109690.0,109680.0,0.51804565]
[1749521066233,0.29277538,109690.0,109680.0,0.51804562]
[1749521066445,0.29277538,109690.0,109680.0,0.11804562]
[1749521066866,0.29277538,109690.0,109680.0,0.5009759]
[1749521067276,0.29277538,109690.0,109680.0,0.51804563]
[1749521067486,0.29277538,109690.0,109680.0,0.51806426]
[1749521067691,0.29277538,109690.0,109680.0,0.5009759]
[1749521069027,0.29277538,109690.0,109680.0,0.51806426]
[1749521069431,0.29277538,109690.0,109680.0,0.5009759]
[1749521069864,0.29277538,109690.0,109680.0,0.11806426]
[1749521070062,0.29277538,109690.0,109680.0,0.1009759]
[1749521070293,0.29277538,109690.0,109680.0,0.11806426]
[1749521070497,0.29277538,109690.0,109680.0,0.5009759]
[1749521070904,0.29277538,109690.0,109680.0,0.51806426]
[1749521071316,0.84576272,109690.0,109680.0,0.51806426]
[1749521071467,0.84576272,109690.0,109680.0,0.5009759]
[1749521071870,0.84576272,109690.0,109680.0,0.51806426]
[1749521072354,0.84576272,109690.0,109680.0,0.48166815]
[1749521072573,0.84576272,109690.0,109680.0,0.46457979]
[1749521072781,0.29277538,109690.0,109680.0,0.46457979]
[1749521072964,0.29277538,109690.0,109680.0,0.48166815]
[1749521073349,0.29277538,109690.0,109680.0,0.08166862]
[1749521073876,0.29277538,109690.0,109680.0,0.48166862]
[1749521074352,0.29277538,109690.0,109680.0,0.46457979]
[1749521074778,0.29277538,109690.0,109680.0,0.48166862]
[1749521075896,0.84576272,109690.0,109680.0,0.48166862]
[1749521076304,0.29277538,109690.0,109680.0,0.48166862]
[1749521076511,0.29277538,109690.0,109680.0,0.46457979]
[1749521076750,0.29277538,109690.0,109680.0,0.48166862]
[1749521076957,0.29277538,109690.0,109680.0,0.06457979]
[1749521077170,0.29277538,109690.0,109680.0,0.08166862]
[1749521077369,0.29277538,109690.0,109680.0,0.48166828]
[1749521077849,0.29277538,109690.0,109680.0,0.46457979]
[1749521078287,0.29277538,109690.0,109680.0,0.48166828]
[1749521078500,0.29277538,109690.0,109680.0,0.46457979]
[1749521078714,0.29277538,109690.0,109680.0,0.50103757]
[1749521078929,0.29277538,109690.0,109680.0,0.51812618]
[1749521079139,0.29277538,109690.0,109680.0,0.50103757]
[1749521079349,0.29277538,109690.0,109680.0,0.1161539]
[1749521079556,0.84576272,109690.0,109680.0,0.09906448]
[1749521079762,0.84576272,109690.0,109680.0,0.11615436]
[1749521079953,0.84576272,109690.0,109680.0,0.06154778]
[1749521080314,0.84576272,109690.0,109680.0,0.04445778]
[1749521080536,0.84576272,109690.0,109680.0,0.06154778]
[1749521080933,0.84576272,109690.0,109680.0,0.04445778]
[1749521082126,0.84576272,109690.0,109680.0,0.06154789]
[1749521082333,0.84576272,109690.0,109680.0,0.02509011]
[1749521082530,0.84576272,109690.0,109680.0,0.04445312]
[1749521082759,0.84576272,109690.0,109680.0,0.06154494]
[1749521082981,0.84576272,109690.0,109680.0,0.04445312]
[1749521083203,0.84576272,109690.0,109680.0,0.06154494]
[1749521083460,0.84576272,109690.0,109680.0,0.07009087]
[1749521083692,0.84576272,109690.0,109680.0,0.05299905]
[1749521083834,0.84576272,109690.0,109680.0,0.0336378]
[1749521084041,0.84576272,109690.0,109680.0,0.4336378]
[1749521084242,0.84576272,109690.0,109680.0,0.42509187]
[1749521084865,0.84576272,109690.0,109680.0,0.46154474]
[1749521085095,0.84576272,109690.0,109680.0,0.44445287]
[1749521085425,0.84576272,109690.0,109680.0,0.46152702]
[1749521086050,0.84576272,109690.0,109680.0,0.44445287]
[1749521086302,0.84576272,109690.0,109680.0,0.46152702]
[1749521086759,0.84576272,109690.0,109680.0,0.44445287]
[1749521086935,0.84576272,109690.0,109680.0,0.06152702]
[1749521087141,0.84576272,109690.0,109680.0,0.04445287]
[1749521087521,0.84576272,109690.0,109680.0,0.44445287]
[1749521087737,0.84576272,109690.0,109680.0,0.46152702]
[1749521088136,0.84576272,109690.0,109680.0,0.408]
[1749521088369,0.84576272,109690.0,109680.0,0.46152618]
[1749521088541,0.84576272,109690.0,109680.0,0.44445203]
[1749521088889,0.84576272,109690.0,109680.0,0.46152618]
[1749521089101,0.29277538,109690.0,109680.0,0.44445203]
[1749521089309,0.84576272,109690.0,109680.0,0.44445203]
[1749521089485,0.84576272,109690.0,109680.0,0.46152618]
[1749521089693,0.84576272,109690.0,109680.0,0.44445203]
[1749521090116,0.84576272,109690.0,109680.0,0.46152618]
[1749521090608,0.84576272,109690.0,109680.0,0.04445203]
[1749521091026,0.84576272,109690.0,109680.0,0.44445203]
[1749521091233,0.29277538,109690.0,109680.0,0.46152603]
[1749521091443,0.84576272,109690.0,109680.0,0.44445203]
[1749521091852,0.84576272,109690.0,109680.0,0.46152603]
[1749521092054,0.84576272,109690.0,109680.0,0.44445203]
[1749521092680,0.84576272,109690.0,109680.0,0.46152603]
[1749521093481,0.84576272,109690.0,109680.0,0.44445203]
[1749521093986,0.84576272,109690.0,109680.0,0.06152603]
[1749521094196,0.84576272,109690.0,109680.0,0.04445203]
[1749521094405,0.84576272,109690.0,109680.0,0.06152603]
[1749521094611,0.84576272,109690.0,109680.0,0.46152603]
[1749521094999,0.84576272,109690.0,109680.0,0.46152599]
[1749521095205,0.84576272,109690.0,109680.0,0.46152598]
[1749521096243,0.29277538,109690.0,109680.0,0.46152585]
[1749521096457,0.26127538,109690.0,109680.0,0.54445203]
[1749521096662,0.54059538,109690.0,109680.0,0.59905873]
[1749521097077,0.54059538,109690.0,109680.0,0.61613231]
[1749521097293,0.54059538,109690.0,109680.0,0.59605873]
[1749521097495,0.54059538,109690.0,109680.0,0.19605873]
[1749521097712,0.54059538,109690.0,109680.0,0.19905873]
[1749521097914,0.54059538,109690.0,109680.0,0.21313231]
[1749521098142,0.54059538,109690.0,109680.0,0.60005873]
[1749521098341,0.54059538,109690.0,109680.0,0.61713231]
[1749521098581,0.54059538,109690.0,109680.0,1.17011962]
[1749521098813,0.54059538,109690.0,109680.0,0.60005873]
[1749521098999,0.54059538,109690.0,109680.0,0.61713224]
[1749521099472,0.54059538,109690.0,109680.0,0.60005873]
[1749521099677,0.54059538,109690.0,109680.0,0.61713224]
[1749521100305,0.54059538,109690.0,109680.0,1.16874607]
[1749521100557,0.54059538,109690.0,109680.0,1.18581948]
[1749521100767,0.54059538,109690.0,109680.0,0.61713214]
[1749521100996,0.54059538,109690.0,109680.0,0.60005873]
[1749521101216,0.54059538,109690.0,109680.0,0.61713212]
[1749521101918,0.54059538,109690.0,109680.0,0.61713213]
[1749521102452,0.54059538,109690.0,109680.0,0.60005873]
[1749521102657,0.54059538,109690.0,109680.0,0.61713197]
[1749521102867,0.54059538,109690.0,109680.0,0.60005873]
[1749521103290,0.54059538,109690.0,109680.0,0.61714969]
[1749521103508,0.54059538,109690.0,109680.0,0.61714971]
[1749521103756,0.54059538,109690.0,109680.0,0.60005873]
[1749521103963,0.54059538,109690.0,109680.0,0.20005873]
[1749521104109,0.54059538,109690.0,109680.0,0.21714972]
[1749521104320,0.54059538,109690.0,109680.0,0.61714972]
[1749521104521,0.54059538,109690.0,109680.0,0.61714973]
[1749521104811,0.54059538,109690.0,109680.0,0.60005873]
[1749521105018,0.54059538,109690.0,109680.0,0.61714973]
[1749521105732,0.84576272,109690.0,109680.0,0.16254303]
[1749521105953,1.92824627,109690.0,109680.0,0.14545203]
[1749521106176,1.92824627,109690.0,109680.0,0.11554664]
[1749521106360,1.92824627,109690.0,109680.0,0.1155468]
[1749521106612,1.92824627,109690.0,109680.0,0.107]
[1749521106866,1.37525893,109690.0,109680.0,0.11554679]
[1749521107092,1.37525893,109690.0,109680.0,0.07921367]
[1749521107093,2.26979148,109690.0,109680.0,0.07921367]
[1749521107329,2.26979148,109690.0,109680.0,0.01709521]
[1749521107330,2.57087679,109690.0,109680.0,0.01709521]
[1749521107547,0.30127972,109670.0,109660.0,0.002]
[1749521107763,1.31114492,109670.0,109660.0,0.01909717]
[1749521107997,1.31114492,109670.0,109660.0,0.01054863]
[1749521108458,1.86413226,109670.0,109660.0,0.0276459]
[1749521108667,1.86413226,109670.0,109660.0,0.01909728]
[1749521108889,1.86413226,109670.0,109660.0,0.002]
[1749521109111,1.86413226,109670.0,109660.0,0.01154864]
[1749521109327,1.31168043,109670.0,109660.0,0.003]
[1749521109559,1.31268043,109670.0,109660.0,0.0115489]
[1749521109760,1.31268043,109670.0,109660.0,0.003]
[1749521109984,1.3246013,109670.0,109660.0,0.01154899]
[1749521110208,1.3246013,109670.0,109660.0,0.003]
[1749521110436,1.3236013,109670.0,109660.0,0.003]
[1749521110641,1.3266013,109670.0,109660.0,0.003]
[1749521111058,1.3266013,109670.0,109660.0,0.01054899]
[1749521111270,1.3266013,109670.0,109660.0,0.002]
[1749521111499,1.3296013,109670.0,109660.0,0.002]
[1749521111742,1.3296013,109670.0,109660.0,0.01054899]
[1749521112016,0.77607845,109670.0,109660.0,0.002]
[1749521112224,1.3296013,109670.0,109660.0,0.002]
[1749521116248,1.3569813,109670.0,109660.0,0.002]
[1749521121066,1.3569813,109670.0,109620.0,0.58762285]
[1749521121067,0.19970567,109600.0,109590.0,0.15481887]
[1749521121302,1.38082093,109600.0,109590.0,0.00975037]
[1749521121553,1.81586597,109600.0,109590.0,0.00975037]
[1749521121806,1.86961152,109600.0,109590.0,0.01830425]
[1749521122020,1.90988596,109600.0,109590.0,0.00975037]
[1749521122256,1.77328596,109600.0,109590.0,0.00975037]
[1749521122493,1.47234666,109600.0,109590.0,0.00975037]
[1749521122742,1.86508751,109600.0,109590.0,0.00975037]
[1749521122959,1.90889371,109600.0,109590.0,0.01830651]
[1749521123199,1.90889371,109600.0,109590.0,0.00975037]
[1749521123427,0.2680586,109590.0,109580.0,0.01208]
[1749521123675,0.2362586,109590.0,109580.0,0.02063602]
[1749521123898,0.78978145,109590.0,109580.0,0.0206355]
[1749521124153,0.81374144,109590.0,109580.0,0.01208]
[1749521124390,1.8045246,109590.0,109580.0,0.02063594]
[1749521124608,1.78296215,109590.0,109580.0,0.01208]
[1749521124849,1.80616443,109590.0,109580.0,0.02063581]
[1749521125055,1.80716443,109590.0,109580.0,0.01208]
[1749521125262,1.80716443,109590.0,109580.0,0.03774922]
[1749521125475,1.80716443,109590.0,109580.0,0.01208]
[1749521125700,0.07585248,109570.0,109560.0,0.002]
[1749521125918,0.32690846,109570.0,109560.0,0.002]
[1749521126130,0.2351106,109570.0,109560.0,1.2285]
[1749521126337,0.81259344,109570.0,109560.0,0.12628957]
[1749521126544,0.21561811,109570.0,109560.0,0.07887033]
[1749521126776,0.25907059,109570.0,109560.0,5.11175939]
[1749521127010,0.25907059,109570.0,109560.0,4.27195939]
[1749521127247,0.25907059,109570.0,109560.0,3.89825939]
[1749521127482,0.25907059,109570.0,109560.0,1.04020987]
[1749521127718,0.25907059,109570.0,109560.0,1.14021023]
[1749521127924,0.26107059,109570.0,109560.0,1.1231]
[1749521128167,0.26307059,109570.0,109560.0,1.14021036]
[1749521128378,0.26107059,109570.0,109560.0,1.14021042]
[1749521128609,0.25907059,109570.0,109560.0,1.14021042]
[1749521128905,0.25907059,109570.0,109560.0,1.14421032]
[1749521129144,0.25907059,109570.0,109560.0,1.14221032]
[1749521129354,0.25907059,109570.0,109560.0,1.1271]
[1749521129793,0.25907059,109570.0,109560.0,1.14421033]
[1749521130040,0.25907059,109570.0,109560.0,1.14421015]
[1749521130260,0.25907059,109570.0,109560.0,1.5271]
[1749521130724,0.25907059,109570.0,109560.0,1.54820987]
[1749521130954,0.25907059,109570.0,109560.0,1.5311]
[1749521131205,0.25907059,109570.0,109560.0,1.54820987]
[1749521131444,0.25907059,109570.0,109560.0,1.5311]
[1749521131918,0.25907059,109570.0,109560.0,1.54821012]
[1749521132138,0.25907059,109570.0,109560.0,1.54821011]
[1749521132354,0.25907059,109570.0,109560.0,1.62289786]
[1749521132355,0.2351106,109570.0,109560.0,1.62289786]
[1749521132590,0.25907059,109570.0,109560.0,1.64000776]
[1749521132805,0.2351106,109570.0,109560.0,1.64000734]
[1749521133008,0.2351106,109570.0,109560.0,1.62289786]
[1749521133009,0.25907059,109570.0,109560.0,1.62289786]
[1749521133212,0.25907059,109570.0,109560.0,2.1702751]
[1749521133421,0.25907059,109570.0,109560.0,1.59964286]
[1749521133649,0.25907059,109570.0,109560.0,1.61675222]
[1749521133895,0.25907059,109570.0,109560.0,1.59964286]
[1749521134139,0.25907059,109570.0,109560.0,1.69240286]
[1749521134369,0.25907059,109570.0,109560.0,1.69996722]
[1749521134605,0.25907059,109570.0,109560.0,1.68285786]
[1749521134819,0.25907059,109570.0,109560.0,1.69996733]
[1749521135025,0.25907059,109570.0,109560.0,1.68285786]
[1749521135205,0.25907059,109570.0,109560.0,1.69996732]
[1749521135674,0.25907059,109570.0,109560.0,1.69996729]
[1749521136195,0.25907059,109570.0,109560.0,1.69996728]
[1749521136483,0.25907059,109570.0,109560.0,1.69996729]
[1749521136686,0.25907059,109570.0,109560.0,1.69795786]
[1749521136941,0.25907059,109570.0,109560.0,1.69996729]
[1749521137173,0.25907059,109570.0,109560.0,1.51540943]
[1749521137394,0.25907059,109570.0,109560.0,1.4983]
[1749521137618,0.25907059,109570.0,109560.0,1.5154097]
[1749521137825,0.25907059,109570.0,109560.0,1.50685488]
[1749521138033,0.25907059,109570.0,109560.0,1.52396462]
[1749521138252,0.25907059,109570.0,109560.0,1.50685488]
[1749521138458,0.25907059,109570.0,109560.0,1.51540976]
[1749521138698,0.25907059,109570.0,109560.0,1.4983]
[1749521138955,0.25907059,109570.0,109560.0,1.44625487]
[1749521139168,0.25907059,109570.0,109560.0,1.46323401]
[1749521139580,0.25907059,109570.0,109560.0,1.45480975]
[1749521140010,0.25907059,109570.0,109560.0,1.45454852]
[1749521140436,0.25907059,109570.0,109560.0,1.4377]
[1749521140845,0.25907059,109570.0,109560.0,1.45454853]
[1749521141059,0.25907059,109570.0,109560.0,1.74646853]
[1749521141265,0.25907059,109570.0,109560.0,0.108]
[1749521141522,0.81259344,109570.0,109560.0,0.108]
[1749521141740,0.88521179,109570.0,109560.0,0.12489215]
[1749521141945,0.88521179,109570.0,109560.0,0.11644638]
[1749521141946,0.8773518,109570.0,109560.0,0.11644638]
[1749521142116,0.90131179,109570.0,109560.0,0.11644638]
[1749521142367,0.90131179,109570.0,109560.0,0.11644664]
[1749521143183,0.90131179,109570.0,109560.0,0.108]
[1749521143386,0.92290898,109570.0,109560.0,0.11644662]
[1749521143520,0.92290898,109570.0,109560.0,0.108]
[1749521144799,0.92290898,109570.0,109560.0,0.13336975]
[1749521145027,1.21446898,109570.0,109560.0,0.13336975]
[1749521145231,1.21446898,109570.0,109560.0,0.13362381]
[1749521145433,1.21446898,109570.0,109560.0,0.12508254]
[1749521145607,1.21446898,109570.0,109560.0,0.13362381]
[1749521145811,1.22956898,109570.0,109560.0,0.108]
[1749521146034,1.20560899,109570.0,109560.0,0.1336241]
[1749521146240,1.25649718,109570.0,109560.0,0.1336241]
[1749521146775,1.25649718,109570.0,109560.0,0.12508327]
[1749521146940,1.25649718,109570.0,109560.0,0.108]
[1749521147143,1.25649718,109570.0,109560.0,0.13362492]
[1749521147350,1.25649718,109570.0,109560.0,0.108]
[1749521147530,1.25649718,109570.0,109560.0,0.13362492]
[1749521147960,1.25649718,109570.0,109560.0,0.13362508]
[1749521148159,1.25649718,109570.0,109560.0,0.13361506]
[1749521148362,1.29240145,109570.0,109560.0,0.13361506]
[1749521148711,1.29240145,109570.0,109560.0,0.13361016]
[1749521148928,1.29240145,109570.0,109560.0,0.13361014]
[1749521149177,0.35960025,109570.0,109560.0,0.108]
[1749521149404,0.61057932,109570.0,109560.0,0.13360986]
[1749521149635,0.57150778,109570.0,109560.0,0.1336086]
[1749521150124,0.57150778,109570.0,109560.0,0.13361319]
[1749521150348,1.22477624,109570.0,109560.0,0.13361548]
[1749521150569,1.22477624,109570.0,109560.0,0.11653853]
[1749521150817,1.15215789,109570.0,109560.0,0.13361561]
[1749521151061,0.57150778,109570.0,109560.0,0.12507708]
[1749521151289,0.57150778,109570.0,109560.0,0.11653854]
[1749521151290,0.59863504,109570.0,109560.0,0.11653854]
[1749521151737,0.59863504,109570.0,109560.0,0.13361562]
[1749521151941,0.59863504,109570.0,109560.0,0.12507708]
[1749521152145,0.30779504,109570.0,109560.0,0.12507703]
[1749521152338,0.30779504,109570.0,109560.0,0.108]
[1749521152553,0.28066778,109570.0,109560.0,0.11653851]
[1749521152736,0.28066778,109570.0,109560.0,0.12507702]
[1749521152963,0.28066778,109570.0,109560.0,0.11653851]
[1749521153139,0.28066778,109570.0,109560.0,0.108]
[1749521153338,0.28066778,109570.0,109560.0,0.13361553]
[1749521153779,0.28066778,109570.0,109560.0,0.13361552]
[1749521153954,0.28066778,109570.0,109560.0,0.13361553]
[1749521154156,0.28066778,109570.0,109560.0,0.11653851]
[1749521154404,0.28066778,109570.0,109560.0,0.12507702]
[1749521154596,0.28066778,109570.0,109560.0,0.13315553]
[1749521154833,0.28066778,109570.0,109560.0,0.13361553]
[1749521155036,0.28066778,109570.0,109560.0,0.12507702]
[1749521155360,0.28066778,109570.0,109560.0,0.11653851]
[1749521155571,0.28066778,109570.0,109560.0,0.12507702]
[1749521155772,0.28066778,109570.0,109560.0,0.108]
[1749521155971,0.28066778,109570.0,109560.0,0.13361553]
[1749521156471,0.28066778,109570.0,109560.0,0.11653851]
[1749521156918,0.28066778,109570.0,109560.0,0.11653853]
[1749521157122,0.28066778,109570.0,109560.0,0.12507706]
[1749521157336,0.28066778,109570.0,109560.0,0.11653853]
[1749521157541,0.28066778,109570.0,109560.0,0.108]
[1749521157950,0.28066778,109570.0,109560.0,0.12507706]
[1749521158172,0.28066778,109570.0,109560.0,0.13361559]
[1749521158313,0.28066778,109570.0,109560.0,0.11653853]
[1749521158515,0.28066778,109570.0,109560.0,0.12507706]
[1749521159411,0.28066778,109570.0,109560.0,0.11653853]
[1749521159611,0.28066778,109570.0,109560.0,0.13361559]
[1749521160064,0.28066778,109570.0,109560.0,0.108]
[1749521160465,0.28066778,109570.0,109560.0,0.11653853]
[1749521160703,0.28066778,109570.0,109560.0,0.108]
[1749521161227,0.28066778,109570.0,109560.0,0.12507706]
[1749521161451,0.28066778,109570.0,109560.0,0.13361559]
[1749521161658,0.28066778,109570.0,109560.0,0.12507706]
[1749521161866,0.28066778,109570.0,109560.0,0.13361559]
[1749521162033,0.28066778,109570.0,109560.0,0.12507706]
[1749521162232,0.28066778,109570.0,109560.0,0.108]
[1749521162459,0.28066778,109570.0,109560.0,0.11653853]
[1749521162460,0.25907059,109570.0,109560.0,0.11653853]
[1749521162860,0.28066778,109570.0,109560.0,0.13361561]
[1749521163104,0.93890898,109570.0,109560.0,0.1336157]
[1749521163339,1.03070684,109570.0,109560.0,0.0336157]
[1749521163536,1.03070684,109570.0,109560.0,0.03361844]
[1749521163748,1.0578341,109570.0,109560.0,0.008]
[1749521163963,1.0578341,109570.0,109560.0,0.01653972]
[1749521164168,0.24693561,109560.0,109550.0,0.001]
[1749521164382,0.24693561,109560.0,109550.0,0.101]
[1749521164383,1.11353565,109560.0,109550.0,0.101]
[1749521164599,0.2372328,109560.0,109550.0,0.10953581]
[1749521164801,0.21563561,109560.0,109550.0,0.10953581]
[1749521165018,0.21563561,109560.0,109550.0,0.101]
[1749521165240,0.21578054,109560.0,109550.0,0.10953575]
[1749521165444,0.21578054,109560.0,109550.0,0.101]
[1749521165662,0.21578054,109560.0,109550.0,0.10953573]
[1749521166308,0.55035302,109560.0,109550.0,0.10953573]
[1749521166537,0.25923302,109560.0,109550.0,0.11253573]
[1749521166742,0.25923302,109560.0,109550.0,0.104]
[1749521167217,0.25923302,109560.0,109550.0,0.1165355]
[1749521167426,0.25923302,109560.0,109550.0,0.108]
[1749521167643,0.25923302,109560.0,109550.0,0.11653546]
[1749521168283,0.25923302,109560.0,109550.0,0.108]
[1749521168496,0.25923302,109560.0,109550.0,0.11653546]
[1749521168720,0.25923302,109560.0,109550.0,0.108]
[1749521168931,0.25923302,109560.0,109550.0,0.11653546]
[1749521169343,0.25923302,109560.0,109550.0,0.108]
[1749521169793,0.25923302,109560.0,109550.0,0.11653782]
[1749521170240,0.25923302,109560.0,109550.0,0.11653783]
[1749521170488,0.25923302,109560.0,109550.0,0.108]
[1749521170897,0.25923302,109560.0,109550.0,0.51653783]
[1749521171107,0.25923302,109560.0,109550.0,0.508]
[1749521171558,0.25923302,109560.0,109550.0,0.51654036]
[1749521171775,0.25923302,109560.0,109550.0,0.508]
[1749521171990,0.27433302,109560.0,109550.0,0.108]
[1749521172211,0.27433302,109560.0,109550.0,0.11654046]
[1749521172438,0.27433302,109560.0,109550.0,0.108]
[1749521172439,0.82785587,109560.0,109550.0,0.108]
[1749521172663,0.82785587,109560.0,109550.0,0.11654056]
[1749521172664,0.29023302,109560.0,109550.0,0.11654056]
[1749521172890,0.84375587,109560.0,109550.0,0.11654075]
[1749521173112,0.84375587,109560.0,109550.0,0.108]
[1749521173346,0.84375587,109560.0,109550.0,0.11654079]
[1749521173783,0.82785587,109560.0,109550.0,0.11654079]
[1749521173994,0.27333302,109560.0,109550.0,0.108]
[1749521174206,0.27333302,109560.0,109550.0,0.11654167]
[1749521174435,0.27333302,109560.0,109550.0,0.108]
[1749521174684,0.81175587,109560.0,109550.0,0.11654167]
[1749521174895,0.25823302,109560.0,109550.0,0.108]
[1749521175099,0.25823302,109560.0,109550.0,0.14814049]
[1749521175100,0.23427303,109560.0,109550.0,0.14814049]
[1749521175333,0.23427303,109560.0,109550.0,0.14814009]
[1749521175539,0.81175587,109560.0,109550.0,0.11654009]
[1749521175979,0.81175587,109560.0,109550.0,0.11654045]
[1749521176183,0.81175587,109560.0,109550.0,0.11654046]
[1749521176393,0.82805587,109560.0,109550.0,0.108]
[1749521176811,0.82805587,109560.0,109550.0,0.11654046]
[1749521177021,0.25823302,109560.0,109550.0,0.11654046]
[1749521177461,0.25823302,109560.0,109550.0,0.11654257]
[1749521177890,0.25823302,109560.0,109550.0,0.108]
[1749521178111,0.25823302,109560.0,109550.0,0.11654054]
[1749521178320,0.25823302,109560.0,109550.0,0.1165404]
[1749521178321,0.23427303,109560.0,109550.0,0.1165404]
[1749521178542,0.23427303,109560.0,109550.0,0.7078637]
[1749521178750,0.23427303,109560.0,109550.0,1.11837709]
[1749521179163,0.23427303,109560.0,109550.0,1.10983679]
[1749521179369,0.23427303,109560.0,109550.0,0.55631394]
[1749521179573,0.25823302,109560.0,109550.0,0.56485421]
[1749521179800,0.25823302,109560.0,109550.0,0.55631394]
[1749521180606,0.25823302,109560.0,109550.0,0.54956355]
[1749521180891,0.25823302,109560.0,109550.0,0.54101394]
[1749521181136,0.23427303,109560.0,109550.0,0.56546355]
[1749521181517,0.23427303,109560.0,109550.0,0.55691394]
[1749521181698,0.25823302,109560.0,109550.0,0.56546355]
[1749521181903,0.23427303,109560.0,109550.0,0.56546355]
[1749521182461,0.23427303,109560.0,109550.0,0.16546355]
[1749521182667,0.23427303,109560.0,109550.0,6.03708147]
[1749521182668,0.19994771,109560.0,109550.0,6.03708147]
[1749521182847,0.2239077,109560.0,109550.0,6.05223465]
[1749521183045,0.2239077,109560.0,109550.0,6.45223465]
[1749521183271,0.2239077,109560.0,109550.0,6.64392793]
[1749521183499,0.2239077,109560.0,109550.0,6.65305609]
[1749521183702,0.2239077,109560.0,109550.0,6.66218417]
[1749521183944,0.2239077,109560.0,109550.0,6.64605609]
[1749521184144,0.21478054,109560.0,109550.0,6.64605609]
[1749521184560,0.19082055,109560.0,109550.0,6.44523465]
[1749521184793,0.20965329,109560.0,109550.0,6.44523465]
[1749521185202,0.21465329,109560.0,109550.0,6.44523465]
[1749521185418,0.21465329,109560.0,109550.0,6.83115465]
[1749521185623,0.21465329,109560.0,109550.0,6.44523465]
[1749521185824,0.21465329,109560.0,109550.0,6.83115465]
[1749521186042,0.21465329,109560.0,109550.0,6.63115465]
[1749521186462,0.21465329,109560.0,109550.0,3.84149465]
[1749521186894,0.25810577,109560.0,109550.0,3.45553465]
[1749521187078,0.25810577,109560.0,109550.0,3.74813465]
[1749521188346,0.25810577,109560.0,109550.0,3.1946118]
[1749521188591,0.25810577,109560.0,109550.0,3.74813465]
[1749521189000,0.25810577,109560.0,109550.0,2.9020118]
[1749521189224,0.25810577,109560.0,109550.0,2.75099394]
[1749521189630,0.25810577,109560.0,109550.0,2.25849394]
[1749521190303,0.25810577,109560.0,109550.0,2.84391679]
[1749521190938,0.25810577,109560.0,109550.0,2.29039394]
[1749521191346,0.25810577,109560.0,109550.0,2.84391679]
[1749521192191,0.25810577,109560.0,109550.0,2.25849394]
[1749521192424,0.25810577,109560.0,109550.0,2.81201679]
[1749521192648,0.25810577,109560.0,109550.0,2.25849394]
[1749521193767,0.25810577,109560.0,109550.0,2.28959394]
[1749521197073,0.21465329,109560.0,109550.0,2.93491465]
[1749521199201,0.21465329,109560.0,109550.0,2.3813918]
[1749521199420,0.21465329,109560.0,109550.0,2.93491465]
[1749521199852,0.21465329,109560.0,109550.0,2.64243465]
[1749521200083,0.21465329,109560.0,109550.0,2.93855465]
[1749521201146,0.21465329,109560.0,109550.0,2.3850318]
[1749521201382,0.21465329,109560.0,109550.0,2.93855465]
[1749521202196,0.25810577,109560.0,109550.0,2.3537718]
[1749521202775,0.25810577,109560.0,109550.0,2.0578118]
[1749521202984,0.25810577,109560.0,109550.0,0.11751394]
[1749521202985,0.28840577,109560.0,109550.0,0.11751394]
[1749521204473,0.28840577,109560.0,109550.0,0.12604416]
[1749521204712,0.84192862,109560.0,109550.0,0.10953048]
[1749521204935,0.84192862,109560.0,109550.0,0.101]
[1749521205424,0.84192862,109560.0,109550.0,0.10953061]
[1749521205645,0.84192862,109560.0,109550.0,0.101]
[1749521205860,0.28840577,109560.0,109550.0,0.10953061]
[1749521206076,0.28840577,109560.0,109550.0,0.101]
[1749521206077,0.84192862,109560.0,109550.0,0.101]
[1749521206307,0.28840577,109560.0,109550.0,0.10953061]
[1749521207391,0.28840577,109560.0,109550.0,0.10955629]
[1749521207520,0.28840577,109560.0,109550.0,0.101]
[1749521207748,0.28840577,109560.0,109550.0,0.10955629]
[1749521207950,0.28840577,109560.0,109550.0,0.101]
[1749521208247,0.28840577,109560.0,109550.0,0.10955629]
[1749521208421,0.28840577,109560.0,109550.0,0.101]
[1749521208788,0.28840577,109560.0,109550.0,0.10955629]
[1749521208989,0.28840577,109560.0,109550.0,0.101]
[1749521209670,0.27330577,109560.0,109550.0,0.101]
[1749521209873,0.28910577,109560.0,109550.0,0.10955628]
[1749521210240,0.28910577,109560.0,109550.0,0.101]
[1749521211087,0.28910577,109560.0,109550.0,0.10955625]
[1749521211289,0.28910577,109560.0,109550.0,0.1095561]
[1749521211498,0.28910577,109560.0,109550.0,0.10955616]
[1749521211698,0.28910577,109560.0,109550.0,0.101]
[1749521211899,0.28910577,109560.0,109550.0,0.1095562]
[1749521212257,0.28910577,109560.0,109550.0,0.1181124]
[1749521212455,0.28910577,109560.0,109550.0,0.101]
[1749521212683,0.28910577,109560.0,109550.0,0.1266686]
[1749521212918,0.28910577,109560.0,109550.0,0.101]
[1749521213318,0.28910577,109560.0,109550.0,0.1181124]
[1749521213728,0.28910577,109560.0,109550.0,0.1266686]
[1749521214315,0.28910577,109560.0,109550.0,0.71260182]
[1749521214316,0.23414578,109560.0,109550.0,0.71260182]
[1749521214711,0.1906933,109560.0,109550.0,0.81264602]
[1749521214959,0.21465329,109560.0,109550.0,6.35912557]
[1749521215159,0.21465329,109560.0,109550.0,6.35912449]
[1749521215385,0.21465329,109560.0,109550.0,6.35912444]
[1749521215576,0.21465329,109560.0,109550.0,6.34201465]
[1749521216028,0.19982055,109560.0,109550.0,6.56907347]
[1749521216250,0.20894755,109560.0,109550.0,6.54925225]